bitfinex-derivatives/quotes_ETHF0:USTF0_20260207
["timestamp","ask_amount","ask_price","bid_price","bid_amount"]
[1770481817683,0.00350962,2055.0,2053.9,4.3449188]
[1770481817984,2.91150702,2055.6,2054.1,4.3449188]
[1770481818185,2.91150702,2055.7,2054.1,4.3449188]
[1770481818481,2.91150702,2055.9,2054.2,4.3449188]
[1770481818884,40.8,2055.8,2054.3,4.3449188]
[1770481819183,40.80393496,2055.8,2054.2,4.3449188]
[1770481820284,40.80393496,2055.8,2054.1,4.3449188]
[1770481821082,40.80393496,2055.8,2053.9,4.3449188]
[1770481821485,5.1135998,2055.7,2053.9,4.3449188]
[1770481821678,5.1135998,2055.7,2053.8,4.91977411]
[1770481822085,5.1135998,2055.7,2053.8,0.57485531]
[1770481822086,8.02510682,2055.7,2053.8,0.57485531]
[1770481822784,2.91150702,2055.7,2053.8,0.57485531]
[1770481826392,2.91150702,2055.6,2053.8,0.57485531]
[1770481827995,40.80393496,2055.8,2054.0,4.3449188]
[1770481828185,43.71544198,2055.8,2054.0,4.3449188]
[1770481828383,40.80393496,2055.8,2054.3,4.3449188]
[1770481828586,40.80393496,2055.8,2054.4,4.3449188]
[1770481828787,0.00393496,2055.8,2054.5,4.3449188]
[1770481829184,0.00393496,2055.8,2054.4,4.3449188]
[1770481829387,2.91150702,2056.5,2054.6,1.12042]
[1770481829586,2.91150702,2057.3,2055.2,4.3449188]
[1770481829789,2.91150702,2057.1,2055.3,25.1]
[1770481829989,2.91150702,2056.9,2054.8,4.3449188]
[1770481830189,2.91150702,2056.8,2054.9,25.092]
[1770481830487,0.00350356,2056.8,2054.9,30.38353706]
[1770481830696,0.00350356,2056.8,2055.3,4.3449188]
[1770481831085,0.00350356,2056.8,2055.4,9.63090488]
[1770481831486,0.00350356,2056.8,2055.3,4.3449188]
[1770481831792,0.00350356,2056.8,2055.1,4.5884188]
[1770481831991,0.00350356,2056.8,2055.1,0.2435]
[1770481832192,0.00350356,2056.8,2055.1,4.5884188]
[1770481832392,0.00350356,2056.8,2055.2,5.22815553]
[1770481832593,0.00350356,2056.8,2055.1,0.2435]
[1770481833486,5.55840592,2056.7,2054.9,0.00555098]
[1770481833686,8.46991294,2056.7,2054.9,0.00555098]
[1770481835496,40.8,2056.6,2054.9,0.00555098]
[1770481835797,5.1434278,2056.5,2054.9,0.00555098]
[1770481835998,8.05493482,2056.5,2054.9,0.00555098]
[1770481836190,2.91150702,2056.4,2054.9,0.00555098]
[1770481836590,5.59060254,2056.3,2054.9,0.00555098]
[1770481836998,2.91150702,2056.1,2054.9,0.00555098]
[1770481837299,8.02882016,2056.0,2054.9,0.00555098]
[1770481837500,8.02882016,2056.0,2054.3,24.832]
[1770481837800,7.78950702,2056.0,2054.3,24.832]
[1770481837995,5.11731314,2055.9,2054.3,24.832]
[1770481838508,5.11731314,2055.9,2054.3,24.83660802]
[1770481839394,8.02882016,2055.9,2054.3,24.83660802]
[1770481839795,51.66341124,2055.9,2054.3,24.83660802]
[1770481839996,56.54141124,2055.9,2054.3,24.83660802]
[1770481840295,2.91150702,2055.8,2054.3,24.83660802]
[1770481840602,8.05211613,2055.7,2054.3,24.83660802]
[1770481840899,45.678,2055.6,2054.3,0.00460802]
[1770481841099,7.78950702,2055.4,2053.3,4.3449188]
[1770481841300,2.91150702,2055.3,2053.4,24.974]
[1770481841596,7.78950702,2055.2,2053.4,25.29908079]
[1770481841802,2.91150702,2055.0,2053.4,25.29908079]
[1770481842097,5.06732128,2054.9,2053.4,25.30427492]
[1770481842294,7.9788283,2054.9,2053.4,25.30427492]
[1770481843301,2.91150702,2054.8,2053.4,25.30427492]
[1770481843502,2.91150702,2054.7,2053.4,25.30427492]
[1770481843691,8.48963787,2054.7,2053.4,0.33027492]
[1770481843893,2.91150702,2054.6,2053.4,0.33027492]
[1770481844098,2.91150702,2054.5,2053.4,0.33027492]
[1770481844296,2.91150702,2054.3,2052.9,25.082]
[1770481844497,2.91150702,2054.2,2052.9,25.082]
[1770481844702,2.91150702,2054.1,2052.9,25.082]
[1770481844902,8.53432531,2054.2,2052.9,25.082]
[1770481845200,5.62281829,2054.0,2052.9,25.0861964]
[1770481845509,2.91150702,2054.8,2052.9,25.0861964]
[1770481845698,2.91150702,2054.9,2052.9,25.0861964]
[1770481845898,5.58672847,2054.5,2052.9,25.0861964]
[1770481846098,5.58672847,2054.7,2052.9,25.0861964]
[1770481846495,5.35008128,2054.4,2053.0,0.24375]
[1770481846803,0.00543365,2055.0,2053.1,4.3449188]
[1770481847103,46.15008128,2054.9,2053.0,4.5886688]
[1770481847304,5.35008128,2054.9,2053.4,0.2437]
[1770481847505,0.00543365,2055.0,2053.4,4.5886188]
[1770481847904,40.8,2054.9,2053.4,4.5886188]
[1770481849102,40.8,2054.9,2053.5,4.3449188]
[1770481849300,40.8,2054.9,2053.6,4.3449188]
[1770481849501,0.00543365,2055.0,2053.6,4.5885988]
[1770481849702,0.00543365,2055.0,2053.7,4.3449188]
[1770481851000,40.8,2055.6,2054.1,4.3449188]
[1770481851196,40.8,2055.6,2054.2,25.08]
[1770481851803,2.91150702,2056.4,2054.4,4.3449188]
[1770481852107,0.00448418,2055.6,2054.4,0.00526469]
[1770481852301,40.80448418,2055.6,2054.4,0.00526469]
[1770481852698,40.80448418,2055.6,2054.4,4.35018349]
[1770481852900,40.80448418,2055.6,2054.4,0.00526469]
[1770481853810,5.60527889,2055.5,2054.4,0.00526469]
[1770481854005,40.80448418,2055.6,2054.4,0.00526469]
[1770481854811,0.00448418,2055.6,2054.4,0.00526469]
[1770481855110,2.91150702,2056.6,2054.5,4.3449188]
[1770481855310,40.8,2056.2,2054.5,4.3449188]
[1770481855613,40.8,2056.2,2054.6,4.3449188]
[1770481855813,2.91150702,2056.6,2054.9,0.24352]
[1770481856114,0.00499636,2056.6,2055.0,4.3449188]
[1770481856314,40.8,2056.5,2055.0,4.3449188]
[1770481856510,5.80713319,2057.4,2055.2,10.14735666]
[1770481856511,8.71864021,2057.4,2055.2,10.14735666]
[1770481856716,2.91150702,2057.7,2055.5,4.3449188]
[1770481856913,2.91150702,2057.3,2055.2,4.3449188]
[1770481857113,5.46358708,2057.2,2055.1,6.7299188]
[1770481857414,2.91150702,2057.2,2055.1,6.7299188]
[1770481857617,2.91769477,2057.2,2055.1,2.385]
[1770481857807,2.91150702,2057.0,2055.1,2.385]
[1770481858010,5.06913297,2057.1,2055.1,2.385]
[1770481858412,2.91769477,2057.2,2055.1,2.385]
[1770481858810,5.51932179,2057.1,2055.1,2.385]
[1770481859010,40.8,2056.9,2055.1,6.7299188]
[1770481859210,40.8,2056.9,2055.2,9.48561426]
[1770481860020,40.8,2056.9,2056.3,25.09396519]
[1770481860216,40.8,2056.9,2056.3,0.0052055]
[1770481860424,40.8,2056.9,2055.1,2.385]
[1770481860614,5.41916657,2056.8,2055.1,2.385]
[1770481861427,40.8,2056.9,2055.1,2.39081436]
[1770481861919,5.29695256,2056.8,2055.2,4.3449188]
[1770481862225,5.29695256,2056.8,2055.1,8.19325222]
[1770481862226,40.8,2056.9,2055.1,6.73573316]
[1770481862720,5.4646242,2056.8,2055.1,2.39081436]
[1770481863726,43.71150702,2056.9,2055.1,2.39081436]
[1770481863926,40.8,2056.9,2055.1,2.39081436]
[1770481864626,40.8,2056.9,2055.1,6.73573316]
[1770481864822,40.8,2056.9,2055.1,2.39081436]
[1770481865024,5.16510571,2056.8,2055.1,2.39081436]
[1770481865317,40.8,2056.9,2055.1,0.00581436]
[1770481865723,5.40401935,2056.8,2055.1,0.00581436]
[1770481866220,0.00618775,2057.2,2055.1,0.00581436]
[1770481866221,0.00618775,2057.2,2055.4,4.3449188]
[1770481866627,40.80618775,2057.2,2055.5,10.01509039]
[1770481866816,40.80618775,2057.2,2055.6,4.3449188]
[1770481867018,0.00618775,2057.2,2055.6,4.3449188]
[1770481867220,0.00618775,2057.2,2055.6,4.5883588]
[1770481867424,40.80618775,2057.2,2055.7,5.42672159]
[1770481867624,40.80618775,2057.2,2055.6,0.24344]
[1770481868223,5.60784945,2057.1,2055.6,0.24344]
[1770481868423,40.80618775,2057.2,2055.6,0.24344]
[1770481870117,40.80618775,2057.2,2055.2,4.3449188]
[1770481870317,40.80618775,2057.2,2055.1,0.00581436]
[1770481870927,5.38534531,2057.1,2055.1,0.00581436]
[1770481872328,40.80618775,2057.2,2055.1,4.35073316]
[1770481873228,40.80618775,2057.2,2055.2,4.3449188]
[1770481873730,40.80618775,2057.2,2055.2,9.48727678]
[1770481873925,40.80618775,2057.2,2055.1,4.35073316]
[1770481874119,40.80618775,2057.2,2055.1,0.00581436]
[1770481874430,5.31699682,2057.1,2055.1,4.35073316]
[1770481875126,10.19499682,2057.1,2055.5,24.98477068]
[1770481875429,2.91150702,2057.0,2055.1,0.00581436]
[1770481875625,7.78950702,2057.0,2055.1,0.00581436]
[1770481875826,8.25813451,2056.9,2055.1,0.00581436]
[1770481876024,13.13613451,2056.9,2055.1,0.00581436]
[1770481876230,43.71150702,2056.8,2055.1,0.00581436]
[1770481876621,5.288937,2056.7,2055.1,0.00581436]
[1770481877427,8.20044402,2056.7,2055.1,0.00581436]
[1770481877627,40.8,2056.8,2055.3,4.3449188]
[1770481878429,40.8,2056.8,2055.3,10.14735666]
[1770481878630,40.8,2056.8,2055.5,4.3449188]
[1770481879936,43.64077883,2057.2,2055.2,7.23462178]
[1770481879937,0.00618775,2057.2,2055.9,4.3449188]
[1770481880235,0.00618775,2057.2,2056.1,4.3449188]
[1770481880434,40.80618775,2057.2,2056.1,4.3449188]
[1770481881231,40.80618775,2057.2,2056.2,4.3449188]
[1770481882027,0.00618775,2057.2,2056.2,4.3449188]
[1770481884237,0.00618775,2057.2,2056.3,4.3449188]
[1770481884840,0.00618775,2057.2,2056.2,10.14735666]
[1770481885141,0.00618775,2057.2,2056.1,4.3449188]
[1770481885538,0.00618775,2057.2,2056.2,4.3449188]
[1770481885740,0.00618775,2057.2,2056.4,10.14735666]
[1770481886137,40.8,2057.7,2056.5,4.3449188]
[1770481887341,40.80541903,2057.7,2056.5,4.3449188]
[1770481887547,40.80541903,2057.7,2056.5,10.46435917]
[1770481887742,40.80541903,2057.7,2056.6,4.3449188]
[1770481888041,40.80541903,2057.7,2056.6,4.34999284]
[1770481888433,40.80541903,2057.7,2056.6,0.00507404]
[1770481888840,43.71692605,2057.7,2056.6,0.00507404]
[1770481890346,40.80541903,2057.7,2056.6,24.98984472]
[1770481890542,40.80541903,2057.7,2056.6,0.00507404]
[1770481890840,0.00541903,2057.7,2056.6,4.34999284]
[1770481892039,0.00541903,2057.7,2056.7,4.3449188]
[1770481893649,0.00541903,2057.7,2056.8,4.3449188]
[1770481894048,40.8,2058.0,2056.8,4.3449188]
[1770481895046,40.80396086,2058.0,2056.8,4.3449188]
[1770481897345,40.80396086,2058.0,2056.7,4.3449188]
[1770481897740,40.80396086,2058.0,2056.6,4.34999284]
[1770481898750,40.80396086,2058.0,2056.6,10.1524307]
[1770481898947,40.80396086,2058.0,2056.6,4.34999284]
[1770481899148,40.80396086,2058.0,2056.7,4.3449188]
[1770481899347,40.80396086,2058.0,2056.6,4.34999284]
[1770481899849,40.80396086,2058.0,2056.6,0.00507404]
[1770481900152,40.80396086,2058.0,2056.6,4.34999284]
[1770481900453,40.80396086,2058.0,2056.7,4.3449188]
[1770481900750,0.00396086,2058.0,2056.8,4.3449188]
[1770481901147,40.8,2057.9,2056.8,4.3449188]
[1770481901347,0.00396086,2058.0,2056.9,4.3449188]
[1770481901542,0.00396086,2058.0,2056.8,4.3449188]
[1770481901747,0.00396086,2058.0,2056.8,9.86908661]
[1770481901948,0.00396086,2058.0,2056.7,4.3449188]
[1770481902543,0.00396086,2058.0,2056.6,10.1524307]
[1770481902753,0.00396086,2058.0,2056.7,4.3449188]
[1770481902947,0.00396086,2058.0,2056.6,4.34999284]
[1770481903148,0.00396086,2058.0,2056.7,4.3449188]
[1770481903753,0.00396086,2058.0,2056.8,4.3449188]
[1770481904345,0.00396086,2058.0,2056.9,4.3449188]
[1770481904955,0.00396086,2058.0,2057.7,24.98477068]
[1770481905151,40.8,2058.4,2057.0,4.3449188]
[1770481905458,2.91150702,2059.3,2057.6,4.3449188]
[1770481905755,40.8,2059.2,2057.7,4.3449188]
[1770481906156,40.80511632,2059.2,2057.7,4.3449188]
[1770481906551,40.80511632,2059.2,2057.8,4.3449188]
[1770481906751,40.80511632,2059.2,2057.9,4.3449188]
[1770481906951,0.00511632,2059.2,2057.9,4.3449188]
[1770481907352,0.00511632,2059.2,2058.0,4.3449188]
[1770481907650,0.00511632,2059.2,2058.0,10.08594777]
[1770481908057,0.00511632,2059.2,2057.7,4.3449188]
[1770481908559,2.91662334,2059.2,2057.6,4.3449188]
[1770481908763,2.91150702,2059.1,2057.5,4.3449188]
[1770481908961,2.91150702,2059.1,2057.4,4.3449188]
[1770481909257,2.91662334,2059.2,2057.5,4.3449188]
[1770481909460,2.91150702,2059.1,2057.5,4.3449188]
[1770481909658,2.91662334,2059.2,2057.5,4.3449188]
[1770481909859,2.91150702,2059.1,2057.5,4.3449188]
[1770481910061,2.91150702,2058.9,2057.3,4.3449188]
[1770481910562,2.91150702,2058.9,2057.2,4.3449188]
[1770481910967,2.91150702,2058.9,2057.3,4.3449188]
[1770481911257,2.91150702,2058.9,2057.2,4.3449188]
[1770481911857,2.91150702,2058.9,2057.3,4.3449188]
[1770481912062,2.91150702,2058.9,2057.2,4.3449188]
[1770481912360,2.91150702,2058.9,2057.3,4.3449188]
[1770481912959,43.71150702,2058.8,2057.2,4.3449188]
[1770481913258,2.91150702,2058.7,2057.0,4.3449188]
[1770481913459,2.91150702,2058.6,2057.0,4.3449188]
[1770481913658,2.91150702,2058.4,2056.7,4.3449188]
[1770481913859,2.91150702,2058.0,2056.6,0.00507404]
[1770481914060,2.91150702,2057.8,2056.6,0.00507404]
[1770481915063,2.91150702,2057.9,2056.6,0.00507404]
[1770481915761,2.91150702,2058.1,2056.6,0.00507404]
[1770481916164,2.91150702,2058.2,2056.6,4.34999284]
[1770481916960,2.91150702,2058.1,2056.6,0.00507404]
[1770481918061,2.91150702,2058.0,2056.6,0.00507404]
[1770481918463,40.8,2057.9,2056.6,0.00507404]
[1770481919466,43.71150702,2057.9,2056.6,0.00507404]
[1770481920169,2.91150702,2057.8,2056.7,24.98477068]
[1770481920573,2.91150702,2057.6,2056.6,0.00507404]
[1770481920865,2.91150702,2056.9,2055.4,4.3449188]
[1770481921170,2.91150702,2056.6,2055.4,0.32067361]
[1770481921561,2.91150702,2056.2,2054.5,4.3449188]
[1770481921765,2.91150702,2056.1,2054.5,0.00517375]
[1770481921964,2.91150702,2056.0,2054.5,0.00517375]
[1770481922158,4.56530789,2056.1,2054.8,4.3449188]
[1770481922465,0.00419586,2056.2,2054.8,4.3449188]
[1770481922860,5.49648073,2056.1,2054.5,4.66452986]
[1770481923066,8.40798775,2056.1,2054.5,0.31961106]
[1770481923270,5.49648073,2056.1,2054.5,0.31961106]
[1770481923466,8.40798775,2056.1,2054.5,0.00517375]
[1770481923964,2.91150702,2055.9,2054.5,0.00517375]
[1770481924166,84.43459108,2056.0,2054.5,0.00517375]
[1770481924167,40.8,2056.0,2054.5,0.00517375]
[1770481925270,0.00419586,2056.2,2054.5,4.35009255]
[1770481925472,0.00419586,2056.2,2054.5,0.00517375]
[1770481925670,40.8,2056.1,2054.5,0.00517375]
[1770481927267,5.38064632,2056.0,2054.5,0.00517375]
[1770481928063,2.91150702,2055.9,2053.7,2.383]
[1770481928265,0.24343,2055.8,2053.7,2.383]
[1770481928475,8.77393556,2055.8,2053.5,0.31856984]
[1770481928671,5.86242854,2055.8,2053.4,10.47585805]
[1770481928868,5.86242854,2055.8,2053.4,10.8013088]
[1770481929067,5.86242854,2055.8,2053.4,10.80527197]
[1770481929769,8.77393556,2055.8,2053.4,10.80527197]
[1770481929976,5.86242854,2055.8,2053.4,10.80527197]
[1770481931173,0.24354,2054.9,2053.4,10.80527197]
[1770481931375,46.7895581,2055.6,2053.4,10.80527197]
[1770481931569,40.8,2054.3,2053.4,10.80527197]
[1770481932166,40.80599681,2054.3,2053.4,10.80960795]
[1770481934676,2.91150702,2056.0,2053.4,0.00433598]
[1770481934873,2.91150702,2056.1,2053.4,0.00433598]
[1770481935075,5.09763397,2055.3,2053.4,0.00433598]
[1770481935272,5.09763397,2055.7,2053.5,5.40879404]
[1770481935677,40.8,2055.6,2053.5,5.40879404]
[1770481936478,40.8,2055.6,2053.5,5.65248404]
[1770481936980,40.8,2055.6,2053.8,0.24366]
[1770481937377,40.8,2055.6,2053.9,5.62389028]
[1770481938180,40.8,2055.6,2053.8,0.24366]
[1770481939479,40.8,2055.6,2053.9,5.11700823]
[1770481940875,0.0052289,2055.7,2053.9,5.36064823]
[1770481941267,5.45429642,2055.5,2053.4,2.38933598]
[1770481941774,0.24346,2055.5,2053.4,2.38933598]
[1770481941966,5.50550436,2055.4,2053.4,2.38933598]
[1770481944875,5.50550436,2055.4,2053.4,0.00433598]
[1770481945075,4.869,2055.3,2053.4,0.00433598]
[1770481945377,13.30870065,2055.2,2053.4,0.00433598]
[1770481946378,2.91150702,2055.1,2053.4,0.00433598]
[1770481946768,54.03178471,2055.2,2053.4,0.00433598]
[1770481946769,45.96069978,2055.0,2053.4,0.00433598]
[1770481947173,40.8,2055.0,2053.4,0.00433598]
[1770481949185,5.08003517,2054.9,2053.4,0.00433598]
[1770481949481,40.8,2055.0,2053.4,4.34925478]
[1770481950178,40.8,2055.0,2053.9,24.98477068]
[1770481950382,5.20240803,2054.9,2053.4,4.34925478]
[1770481950676,40.8,2055.0,2053.4,10.09028375]
[1770481951278,40.8,2055.0,2053.5,4.3449188]
[1770481952182,40.8,2055.0,2053.5,10.08594777]
[1770481952881,40.8,2055.0,2053.5,4.3449188]
[1770481953279,40.8,2055.0,2053.5,10.08594777]
[1770481953586,40.8,2055.0,2053.8,4.3449188]
[1770481953784,2.91150702,2055.5,2053.9,4.3449188]
[1770481953988,2.91673592,2055.7,2054.1,4.3449188]
[1770481954182,40.8,2055.4,2054.1,4.3449188]
[1770481954688,40.8,2055.4,2054.2,4.3449188]
[1770481955178,40.8,2055.4,2054.3,4.3449188]
[1770481955374,40.8,2055.4,2054.2,4.3449188]
[1770481956184,40.8,2055.4,2054.3,4.3449188]
[1770481956387,40.8,2055.4,2054.1,4.3449188]
[1770481956578,40.8,2055.4,2054.0,4.3449188]
[1770481956775,43.71150702,2055.4,2054.0,4.3449188]
[1770481957288,43.71150702,2055.4,2053.7,7.23462178]
[1770481957289,2.91150702,2054.9,2053.5,4.3449188]
[1770481957679,2.91150702,2054.9,2053.5,4.5886088]
[1770481957878,40.8,2055.4,2054.1,4.3449188]
[1770481958080,40.8,2055.4,2054.2,4.3449188]
[1770481958279,40.8,2055.4,2054.1,10.08594777]
[1770481958682,40.8,2055.4,2054.2,4.3449188]
[1770481959285,5.62793454,2055.3,2053.9,4.3449188]
[1770481959586,2.90306499,2055.2,2053.7,10.08594777]
[1770481959792,49.26252562,2055.3,2053.5,4.3449188]
[1770481959793,46.53765607,2055.0,2053.5,4.3449188]
[1770481959982,2.90306499,2055.0,2053.6,4.3449188]
[1770481960285,5.30029832,2054.9,2053.7,4.3449188]
[1770481960586,2.90306499,2055.2,2053.7,4.3449188]
[1770481960792,2.90306499,2055.2,2053.8,4.3449188]
[1770481960984,40.8,2055.4,2054.1,4.3449188]
[1770481961384,40.8,2055.4,2054.0,10.08594777]
[1770481961786,40.8,2055.4,2054.1,4.3449188]
[1770481963287,40.8,2055.4,2054.3,4.3449188]
[1770481963988,40.8,2055.4,2054.2,4.3449188]
[1770481964386,40.8,2055.4,2054.3,4.3449188]
[1770481965290,40.8,2055.4,2054.3,10.08594777]
[1770481965490,40.8,2055.4,2054.4,29.32968948]
[1770481965690,40.8,2055.4,2054.4,4.3449188]
[1770481965882,0.0052289,2055.7,2054.5,4.3449188]
[1770481966282,0.0052289,2055.7,2054.7,4.3449188]
[1770481966491,5.13645806,2055.6,2054.5,4.3449188]
[1770481966695,5.13645806,2055.6,2054.4,5.74102897]
[1770481966696,5.13645806,2055.6,2054.4,4.3449188]
[1770481966988,8.03952305,2055.6,2054.3,4.3449188]
[1770481967889,43.70829389,2055.7,2054.4,4.3449188]
[1770481968196,40.8052289,2055.7,2054.6,4.3449188]
[1770481969893,40.8052289,2055.7,2054.7,4.3449188]
[1770481970200,0.0052289,2055.7,2054.8,4.3449188]
[1770481970389,2.90306499,2056.4,2055.0,4.3449188]
[1770481970589,2.90306499,2056.5,2055.1,4.3449188]
[1770481970790,40.8,2056.3,2055.2,4.3449188]
[1770481971394,40.8050278,2056.3,2055.2,0.0040373]
[1770481971597,40.8050278,2056.3,2055.2,4.3489561]
[1770481971896,40.8050278,2056.3,2055.3,4.3449188]
[1770481972091,40.8050278,2056.3,2055.4,4.3449188]
[1770481972797,0.0050278,2056.3,2055.4,4.3449188]
[1770481972997,2.90306499,2057.1,2055.5,4.3449188]
[1770481973203,2.90306499,2057.2,2055.4,10.08594777]
[1770481973495,40.8,2056.8,2055.5,4.3449188]
[1770481973898,40.80349229,2056.8,2055.5,4.3449188]
[1770481974998,40.80349229,2056.8,2055.5,10.08594777]
[1770481975199,40.80349229,2056.8,2055.5,4.3449188]
[1770481975501,40.80349229,2056.8,2055.6,4.3449188]
[1770481976200,40.80349229,2056.8,2055.5,4.3449188]
[1770481976795,40.80349229,2056.8,2055.6,4.3449188]
[1770481977195,40.80349229,2056.8,2055.5,4.3449188]
[1770481977599,0.00349229,2056.8,2055.7,4.3449188]
[1770481977798,5.80713319,2057.9,2055.6,5.74102897]
[1770481977799,2.90306499,2057.9,2055.9,4.3449188]
[1770481978001,2.90306499,2057.8,2055.8,4.3449188]
[1770481978196,40.8,2057.4,2055.7,10.08594777]
[1770481978596,40.8,2057.4,2055.8,4.3449188]
[1770481978897,40.80358857,2057.4,2055.8,4.3449188]
[1770481979400,40.80358857,2057.4,2055.7,4.3449188]
[1770481979698,40.80358857,2057.4,2055.8,4.3449188]
[1770481980002,40.80358857,2057.4,2056.4,24.98477068]
[1770481980200,40.80358857,2057.4,2056.0,4.3449188]
[1770481980405,40.80358857,2057.4,2056.1,4.3449188]
[1770481980893,40.80358857,2057.4,2056.2,4.3449188]
[1770481981096,0.00358857,2057.4,2056.2,4.3449188]
[1770481981298,0.00358857,2057.4,2056.2,9.94058353]
[1770481981498,0.00358857,2057.4,2056.1,4.5882988]
[1770481982002,0.00358857,2057.4,2056.1,0.24338]
[1770481982705,0.00358857,2057.4,2055.8,4.3449188]
[1770481982904,0.00358857,2057.4,2055.7,5.74102897]
[1770481982905,0.00358857,2057.4,2055.7,4.3449188]
[1770481983101,0.00358857,2057.4,2055.8,4.3449188]
[1770481983303,0.00358857,2057.4,2055.9,4.3449188]
[1770481983601,0.00358857,2057.4,2055.8,4.5883388]
[1770481984201,0.00358857,2057.4,2055.8,0.24342]
[1770481985500,0.00358857,2057.4,2055.3,10.08594777]
[1770481985696,0.00358857,2057.4,2055.4,4.5883888]
[1770481986304,0.00358857,2057.4,2055.4,0.24347]
[1770481986500,5.25996922,2057.3,2055.8,0.24342]
[1770481986707,0.00358857,2057.4,2055.8,4.5883388]
[1770481986998,0.00358857,2057.4,2055.8,0.24342]
[1770481987203,40.8,2057.3,2055.8,0.24342]
[1770481987604,40.8,2057.3,2055.9,10.14123666]
[1770481988207,7.51893392,2058.8,2056.7,0.24331]
[1770481988409,2.90306499,2058.7,2056.7,0.24331]
[1770481988603,40.8,2058.1,2056.4,4.3449188]
[1770481988803,40.8,2058.1,2056.3,4.3449188]
[1770481989004,40.8,2058.1,2056.4,4.3449188]
[1770481989203,40.80536202,2058.1,2056.4,4.35104265]
[1770481989404,40.80536202,2058.1,2056.5,4.3449188]
[1770481989603,40.80536202,2058.1,2056.6,4.3449188]
[1770481989802,40.80536202,2058.1,2056.7,4.5882288]
[1770481990003,0.00536202,2058.1,2056.8,4.3449188]
[1770481990301,0.00536202,2058.1,2056.8,9.9632532]
[1770481990912,0.00536202,2058.1,2056.8,5.6183344]
[1770481991104,0.00536202,2058.1,2056.7,4.5882288]
[1770481991302,0.00536202,2058.1,2056.7,0.24331]
[1770481992405,0.00536202,2058.1,2056.8,5.53020506]
[1770481992611,0.00536202,2058.1,2056.8,9.87512386]
[1770481992909,0.00536202,2058.1,2056.8,4.5882188]
[1770481993506,0.00536202,2058.1,2056.8,0.2433]
[1770481993705,0.00536202,2058.1,2057.0,4.3449188]
[1770481994410,0.00536202,2058.1,2057.0,4.5881988]
[1770481994611,40.8,2058.7,2057.0,4.5881988]
[1770481994612,40.8,2058.7,2057.1,9.83450275]
[1770481994809,40.8,2058.7,2057.1,5.48958395]
[1770481995006,40.8,2058.7,2057.0,4.5881988]
[1770481995602,40.80497391,2058.7,2057.0,4.5881988]
[1770481995807,40.80497391,2058.7,2057.0,10.32922777]
[1770481996106,40.80497391,2058.7,2057.0,4.5881988]
[1770481996313,40.80497391,2058.7,2057.1,4.3449188]
[1770481996508,40.80497391,2058.7,2057.1,9.45564758]
[1770481996902,40.80497391,2058.7,2057.1,9.69891758]
[1770481997106,40.80497391,2058.7,2057.3,4.3449188]
[1770481997312,40.80497391,2058.7,2057.2,4.3449188]
[1770481997511,40.80497391,2058.7,2057.2,10.08594777]
[1770481998109,40.80497391,2058.7,2057.2,4.3449188]
[1770481999002,40.80497391,2058.7,2057.2,0.36472333]
[1770481999207,40.80497391,2058.7,2057.1,4.5881888]
[1770481999408,5.08319253,2058.6,2057.1,0.3676697]
[1770481999604,7.98625752,2058.6,2056.4,4.35104265]
[1770482000013,2.90306499,2058.4,2056.5,0.37105395]
[1770482000212,2.90306499,2058.2,2056.4,0.00612385]
[1770482000411,2.90306499,2058.1,2056.4,0.00612385]
[1770482000609,43.70306499,2057.8,2056.4,0.00612385]
[1770482001010,43.70306499,2057.8,2056.4,0.36533291]
[1770482001205,8.05799923,2057.7,2056.4,0.36533291]
[1770482002407,2.90306499,2057.6,2055.7,4.3449188]
[1770482002608,2.90306499,2057.6,2055.7,4.72131258]
[1770482002807,2.90306499,2057.3,2055.7,0.37639378]
[1770482003010,2.90306499,2057.3,2055.4,4.3449188]
[1770482003210,51.63679352,2057.2,2055.2,10.08594777]
[1770482003411,2.90306499,2057.1,2055.2,4.34906962]
[1770482003715,2.90784389,2057.2,2055.3,4.3449188]
[1770482003908,0.0047789,2057.2,2055.5,4.3449188]
[1770482004407,0.0047789,2057.2,2055.6,4.3449188]
[1770482004610,0.0047789,2057.2,2055.6,4.5883588]
[1770482004808,0.0047789,2057.2,2056.0,4.3449188]
[1770482005407,0.0047789,2057.2,2055.8,4.3449188]
[1770482005609,0.0047789,2057.2,2055.7,4.3449188]
[1770482006013,0.0047789,2057.2,2055.6,4.3449188]
[1770482006210,0.0047789,2057.2,2055.5,10.08594777]
[1770482006211,40.8,2057.1,2055.5,10.08594777]
[1770482006417,40.8,2057.1,2055.5,4.3449188]
[1770482006714,40.8,2057.1,2055.4,4.3449188]
[1770482007512,40.8,2057.1,2055.6,4.3449188]
[1770482007715,40.8,2057.1,2055.8,4.3449188]
[1770482008316,40.8,2057.1,2055.9,4.3449188]
[1770482008712,40.8,2057.1,2055.8,4.3449188]
[1770482009107,40.8,2057.1,2055.7,4.3449188]
[1770482009320,40.8,2057.1,2055.8,4.3449188]
[1770482009516,40.8,2057.1,2055.9,4.3449188]
[1770482009915,40.8,2057.1,2055.8,4.3449188]
[1770482011421,40.8,2057.1,2055.9,4.3449188]
[1770482011718,40.8,2057.1,2055.8,4.3449188]
[1770482012021,5.285721,2057.0,2055.7,4.3449188]
[1770482012221,5.285721,2057.0,2055.5,4.3449188]
[1770482012415,0.0047789,2057.2,2055.5,4.3449188]
[1770482012617,40.8,2056.9,2055.5,4.3449188]
[1770482013315,40.8,2056.9,2055.6,4.3449188]
[1770482013520,40.8,2056.9,2055.8,4.3449188]
[1770482015223,40.8,2056.9,2055.5,4.3449188]
[1770482015614,40.8,2056.9,2055.6,4.3449188]
[1770482016314,40.8,2056.9,2055.5,4.3449188]
[1770482017316,40.8,2056.9,2055.4,4.5883788]
[1770482017511,40.8,2056.9,2055.3,4.3449188]
[1770482018213,40.8,2056.9,2055.2,4.71559802]
[1770482018610,5.2114602,2056.8,2055.2,0.37067922]
[1770482019211,40.8,2056.9,2055.2,4.71559802]
[1770482019413,40.8,2056.9,2055.2,10.45662699]
[1770482019614,40.8,2056.9,2055.3,4.3449188]
[1770482020020,40.8,2056.9,2055.4,4.3449188]
[1770482020725,0.0047789,2057.2,2055.7,4.3449188]
[1770482021122,40.8,2057.1,2055.7,4.3449188]
[1770482021321,40.8,2057.1,2055.9,4.3449188]
[1770482021526,40.8,2057.1,2055.8,4.3449188]
[1770482022720,40.8,2057.1,2055.7,4.5883488]
[1770482022921,40.8,2057.1,2055.5,4.3449188]
[1770482023524,40.8,2057.1,2055.6,4.3449188]
[1770482023716,40.8,2057.1,2055.5,10.08594777]
[1770482023920,40.8,2057.1,2055.5,4.3449188]
[1770482024126,10.00967812,2057.0,2055.4,4.3449188]
[1770482024325,12.91274311,2057.0,2055.2,0.37067922]
[1770482025131,2.90306499,2056.9,2055.2,0.37067922]